bitfinex-derivatives/quotes_ETHF0:USTF0_20250531
["timestamp","ask_amount","ask_price","bid_price","bid_amount"]
[1748650048071,0.78758,2538.4,2538.3,3.2078]
[1748650048373,0.78764,2538.2,2538.1,5.85091086]
[1748650048886,0.78763,2538.3,2538.1,5.85091086]
[1748650049175,0.78764,2538.2,2538.1,0.00591086]
[1748650049378,0.78764,2538.2,2538.1,5.85091086]
[1748650049585,0.00591086,2538.6,2538.1,10.85091086]
[1748650049772,0.78761,2538.3,2538.2,1.3431]
[1748650049973,0.78764,2538.2,2538.1,0.00591086]
[1748650050582,5.78764,2538.2,2538.1,8.6e-07]
[1748650050772,7.10334,2538.2,2538.1,8.6e-07]
[1748650052580,8.08732132,2538.2,2538.1,8.6e-07]
[1748650053580,3.08732132,2538.2,2538.1,8.6e-07]
[1748650053777,0.98398132,2538.2,2538.1,8.6e-07]
[1748650054082,3.2078,2538.3,2538.1,8.6e-07]
[1748650054584,3.2078,2538.3,2538.2,0.78764]
[1748650055184,3.2078,2538.3,2538.2,5.0]
[1748650055385,1.7713,2538.4,2538.3,0.78761]
[1748650055589,1.7713,2538.4,2538.3,11.73361]
[1748650055882,1.7713,2538.4,2538.2,3.2078]
[1748650056083,0.78761,2538.3,2538.2,3.2078]
[1748650056283,1.7713,2538.4,2538.2,3.2078]
[1748650056483,2.5589,2538.4,2538.2,4.5258]
[1748650056677,1.7713,2538.4,2538.3,1.318]
[1748650056886,1.7713,2538.4,2538.3,2.10561]
[1748650057086,1.7713,2538.4,2538.3,7.10561]
[1748650057984,2.55888,2538.4,2538.3,1.318]
[1748650058379,1.7713,2538.4,2538.3,1.318]
[1748650058885,2.55888,2538.4,2538.3,1.318]
[1748650059078,1.7713,2538.4,2538.3,2.10561]
[1748650059279,2.55888,2538.4,2538.3,1.318]
[1748650059488,0.78764,2538.2,2538.1,8.6e-07]
[1748650059686,1.7713,2538.4,2538.1,8.6e-07]
[1748650059882,1.7713,2538.4,2538.1,5.94600086]
[1748650060083,0.78764,2538.2,2538.1,5.94600086]
[1748650061187,0.78764,2538.2,2538.1,8.6e-07]
[1748650061385,2.12124,2538.2,2538.1,8.6e-07]
[1748650061580,0.78786,2537.5,2537.4,3.07468948]
[1748650061779,3.2078,2537.5,2537.1,3.07468948]
[1748650061976,4.5414,2537.8,2537.1,4.40548948]
[1748650062376,0.78785,2537.6,2537.2,0.78794]
[1748650062579,0.78781,2537.7,2537.4,0.78787]
[1748650062781,4.5414,2537.8,2537.5,1.3308]
[1748650063188,0.7879,2537.4,2537.3,5.946]
[1748650063690,0.78795,2537.2,2537.1,0.00591086]
[1748650063885,1.3274,2537.3,2537.1,0.00591086]
[1748650064082,0.78792,2537.3,2537.1,0.00591086]
[1748650064290,1.3274,2537.6,2537.1,0.00591086]
[1748650064491,1.3274,2537.6,2537.1,0.79388086]
[1748650064791,2.11524,2537.6,2537.2,2.14085]
[1748650064989,1.3274,2537.6,2537.2,1.3529]
[1748650065202,0.78792,2537.3,2537.2,1.3529]
[1748650065389,3.2078,2537.5,2537.1,0.00591086]
[1748650065586,1.3274,2537.2,2537.1,0.79390086]
[1748650065781,0.78784,2537.6,2537.1,0.00591086]
[1748650065987,1.46641,2537.7,2537.3,0.7879]
[1748650066189,2.79381,2537.7,2537.4,0.78789]
[1748650066484,3.2078,2537.8,2537.7,0.7878]
[1748650066695,3.2078,2538.2,2537.5,4.4871]
[1748650066881,2.05729,2538.1,2537.5,4.4871]
[1748650067382,1.2696,2538.1,2537.6,0.7878]
[1748650067586,0.78771,2538.0,2537.7,1.2793]
[1748650067791,0.78771,2538.0,2537.7,2.06708]
[1748650067987,1.2696,2538.1,2537.7,2.06708]
[1748650067988,1.2696,2538.1,2537.7,1.2793]
[1748650068194,1.2696,2538.1,2537.5,3.2078]
[1748650068393,1.2696,2538.1,2537.5,4.4871]
[1748650068895,0.78778,2537.8,2537.5,5.27495]
[1748650069395,1.2696,2538.1,2537.5,1.2793]
[1748650069595,0.78782,2537.7,2537.5,1.2793]
[1748650069892,1.2696,2538.1,2537.2,3.2078]
[1748650069893,0.78791,2537.4,2537.2,3.2078]
[1748650070101,1.3197,2537.6,2537.3,5.947]
[1748650070391,1.3197,2537.6,2537.3,7.3001]
[1748650070588,0.78789,2537.4,2537.3,7.3001]
[1748650070797,1.3197,2537.6,2537.4,0.78788]
[1748650070992,1.3197,2537.6,2537.3,8.08802]
[1748650071187,0.78795,2537.2,2537.1,0.00591086]
[1748650071388,0.78795,2537.2,2537.1,5.95291086]
[1748650071692,0.78795,2537.2,2537.1,0.00591086]
[1748650072101,2.10765,2537.2,2537.1,0.00591086]
[1748650077795,1.3197,2537.2,2537.1,0.00591086]
[1748650077996,3.2078,2537.3,2537.1,5.71391086]
[1748650078298,1.7723,2537.4,2537.1,5.71391086]
[1748650078501,2.03905,2537.2,2537.1,5.71391086]
[1748650079200,1.2511,2537.2,2537.1,5.71391086]
[1748650079596,4.9801,2537.4,2537.1,5.71391086]
[1748650079795,0.78795,2537.2,2537.1,5.71391086]
[1748650080805,0.78795,2537.2,2537.1,0.00591086]
[1748650081001,1.47025,2537.2,2537.1,0.00591086]
[1748650081692,0.78808,2536.8,2536.7,5.708]
[1748650081893,3.2078,2536.9,2536.0,3.07468948]
[1748650082097,0.78828,2536.2,2536.0,3.07468948]
[1748650082300,7.09878,2536.7,2536.0,3.07468948]
[1748650082501,0.78829,2536.2,2536.0,3.07468948]
[1748650082698,0.78829,2536.2,2535.9,1.2423]
[1748650082699,5.1285,2536.7,2535.9,1.2423]
[1748650082903,0.00591086,2536.4,2536.3,0.78823]
[1748650083099,0.00591086,2536.4,2536.3,6.49623]
[1748650083291,0.79411086,2536.4,2536.3,5.708]
[1748650084604,1.24851086,2536.4,2536.3,5.708]
[1748650084804,0.00591086,2536.4,2536.3,6.49623]
[1748650085000,0.00591086,2536.4,2536.3,5.708]
[1748650085191,0.99031086,2536.4,2536.3,5.708]
[1748650085501,0.78827,2536.2,2536.1,5.709]
[1748650085698,1.54101086,2536.4,2535.9,5.709]
[1748650086001,2.12721,2536.1,2535.9,5.709]
[1748650086400,0.78833,2536.0,2535.9,5.709]
[1748650086604,0.78836,2535.9,2535.8,45.43691086]
[1748650086898,3.2078,2536.2,2535.8,45.43691086]
[1748650087710,1.3389,2536.1,2535.8,45.43691086]
[1748650087892,0.78833,2536.0,2535.8,45.43691086]
[1748650088098,2.12721,2536.1,2535.8,46.22529086]
[1748650088305,2.12721,2536.1,2535.8,45.43691086]
[1748650088499,0.78836,2535.9,2535.8,45.43691086]
[1748650088997,3.99616,2535.9,2535.8,0.00591086]
[1748650089393,1.3389,2536.1,2535.8,0.00591086]
[1748650089804,0.78836,2535.9,2535.8,0.00591086]
[1748650090000,3.2078,2536.0,2535.8,0.79430086]
[1748650090204,1.3389,2536.1,2535.8,0.00591086]
[1748650090402,0.78831,2536.1,2535.8,0.00591086]
[1748650090699,5.27944,2536.3,2536.0,0.78831]
[1748650090904,4.4912,2536.3,2535.8,0.00591086]
[1748650091105,0.20211086,2536.4,2536.3,0.78823]
[1748650091406,0.20211086,2536.4,2536.3,6.49723]
[1748650091598,0.20211086,2536.4,2536.3,5.709]
[1748650091798,0.99031086,2536.4,2536.3,5.709]
[1748650091997,0.20211086,2536.4,2535.9,0.6465]
[1748650092193,0.78831,2536.1,2535.9,5.709]
[1748650092403,3.40991086,2536.4,2535.9,5.709]
[1748650092599,0.78833,2536.0,2535.9,5.709]
[1748650093201,1.2465,2536.2,2535.9,5.709]
[1748650093404,0.78833,2536.0,2535.9,5.709]
[1748650093908,1.2465,2536.2,2535.9,5.709]
[1748650094095,2.03477,2536.2,2535.9,5.709]
[1748650094297,2.5618,2536.1,2535.9,5.709]
[1748650094500,0.78833,2536.0,2535.9,5.709]
[1748650094907,2.05703,2536.0,2535.9,5.709]
[1748650095601,1.7735,2536.1,2535.9,5.709]
[1748650095801,1.7735,2536.1,2535.9,6.49734]
[1748650096002,0.78833,2536.0,2535.9,5.709]
[1748650096208,2.05703,2536.0,2535.9,5.709]
[1748650097208,1.2687,2536.0,2535.9,6.49736]
[1748650097404,1.2687,2536.0,2535.9,5.709]
[1748650097612,2.05703,2536.0,2535.9,5.709]
[1748650097907,0.78836,2535.9,2535.8,0.00591086]
[1748650098107,1.2654,2535.9,2535.8,0.00591086]
[1748650098302,2.05376,2535.9,2535.8,0.00591086]
[1748650099006,6.36101,2536.1,2535.8,0.79428086]
[1748650099200,6.36101,2536.1,2535.8,0.79429086]
[1748650099201,5.5727,2536.1,2535.8,0.79429086]
[1748650099398,5.5727,2536.1,2535.8,0.00591086]
[1748650099604,0.78836,2535.9,2535.8,0.00591086]
[1748650100006,1.2654,2536.0,2535.8,0.79428086]
[1748650100208,0.78836,2535.9,2535.8,0.00591086]
[1748650101102,2.13385,2536.0,2535.8,0.00591086]
[1748650101303,2.3649,2536.1,2536.0,0.78833]
[1748650101511,2.3649,2536.1,2535.9,0.78834]
[1748650101811,2.3649,2536.1,2536.0,0.78833]
[1748650102011,3.1532,2536.1,2535.9,2.13194]
[1748650102199,2.3649,2536.1,2535.9,1.3436]
[1748650102510,2.3649,2536.1,2536.0,0.78833]
[1748650102711,3.15321,2536.1,2535.9,2.13194]
[1748650102905,0.78833,2536.0,2535.9,1.3436]
[1748650103307,2.3649,2536.1,2536.0,0.78833]
[1748650103508,0.78833,2536.0,2535.9,1.3436]
[1748650103710,0.78836,2535.9,2535.8,0.00591086]
[1748650104009,2.3649,2536.1,2535.8,0.79429086]
[1748650104213,2.3649,2536.1,2535.8,0.00591086]
[1748650104414,2.3649,2536.1,2535.8,0.79429086]
[1748650104709,2.3649,2536.1,2535.9,1.3154]
[1748650104908,2.3649,2536.1,2536.0,0.78833]
[1748650105505,2.3649,2536.1,2535.9,2.10374]
[1748650105813,2.3649,2536.1,2535.9,1.3154]
[1748650106012,2.3649,2536.1,2535.9,5.465]
[1748650106307,3.15322,2536.1,2535.9,5.465]
[1748650106511,2.3649,2536.1,2535.9,6.25335]
[1748650106706,0.78833,2536.0,2535.9,5.465]
[1748650107015,2.3649,2536.1,2535.9,5.465]
[1748650107207,3.15321,2536.1,2535.9,5.465]
[1748650107404,0.78836,2535.9,2535.8,0.00591086]
[1748650107602,3.99616,2535.9,2535.8,0.00591086]
[1748650107806,0.78845,2535.6,2535.5,3.07468948]
[1748650108311,0.78845,2535.6,2535.4,3.07468948]
[1748650108510,1.2867,2535.5,2535.4,3.07468948]
[1748650108816,2.07518,2535.5,2535.2,4.00227086]
[1748650109214,0.78854,2535.3,2535.2,3.21371086]
[1748650109807,1.2867,2535.5,2535.2,3.21371086]
[1748650110008,3.2078,2535.9,2535.2,3.21371086]
[1748650110221,1.3152,2536.0,2535.3,1.2444]
[1748650110402,2.557,2536.0,2535.3,1.2444]
[1748650110606,2.557,2536.0,2535.2,3.21371086]
[1748650110806,3.2078,2535.8,2535.2,8.67971086]
[1748650111014,0.78854,2535.3,2535.2,8.67971086]
[1748650111211,0.78853,2535.4,2535.2,8.67971086]
[1748650111407,2.3649,2536.1,2535.2,8.67971086]
[1748650111609,2.3649,2536.1,2535.7,3.2078]
[1748650111815,1.2418,2536.0,2535.7,3.2078]
[1748650112016,0.78847,2535.6,2535.4,3.2078]
[1748650112312,1.2418,2536.0,2535.4,3.2078]
[1748650112613,1.2418,2536.0,2535.5,1.2675]
[1748650113010,0.78841,2535.8,2535.5,1.2675]
[1748650113417,1.2418,2536.0,2535.5,1.2675]
[1748650113717,1.2418,2536.0,2535.8,0.78837]
[1748650113917,3.1532,2536.1,2535.7,5.466]
[1748650114111,2.3649,2536.1,2536.0,0.78833]
[1748650114515,2.3649,2536.1,2535.8,1.2675]
[1748650114717,0.78834,2536.0,2535.8,1.2675]
[1748650115019,2.3649,2536.1,2535.9,0.78834]
[1748650115220,1.3165,2536.0,2535.7,8.6738]
[1748650115511,1.3165,2536.0,2535.7,9.9987]
[1748650115719,0.78833,2536.0,2535.8,1.3249]
[1748650116014,0.78836,2535.9,2535.7,8.6738]
[1748650116215,0.78839,2535.8,2535.7,3.2078]
[1748650116414,0.78842,2535.7,2535.6,3.07468948]
[1748650116606,0.78845,2535.6,2535.5,3.07468948]
[1748650116813,0.78854,2535.3,2535.2,0.00591086]
[1748650117015,3.99634,2535.3,2535.2,0.00591086]
[1748650117519,8.99634,2535.3,2535.2,8.6e-07]
[1748650118016,9.19354,2535.3,2535.2,8.6e-07]
[1748650118808,10.27586952,2535.3,2535.2,8.6e-07]
[1748650119521,9.19354,2535.3,2535.2,8.6e-07]
[1748650120013,0.1972,2535.3,2535.2,8.6e-07]
[1748650120214,0.98574,2535.3,2535.2,8.6e-07]
[1748650120617,2.21944,2535.3,2535.2,8.6e-07]
[1748650122620,2.81104,2535.3,2535.2,8.6e-07]
[1748650122816,7.81104,2535.3,2535.2,8.6e-07]
[1748650123923,0.78882,2534.4,2534.3,5.467]
[1748650124317,3.2078,2534.7,2534.3,5.467]
[1748650124515,0.6231,2534.9,2534.3,5.467]
[1748650124723,0.78862,2535.1,2534.8,0.78868]
[1748650125018,0.7888,2535.3,2534.7,0.00591086]
[1748650125019,0.00591086,2535.2,2534.7,0.00591086]
[1748650125223,0.00591086,2535.2,2534.8,0.78868]
[1748650125420,0.79451086,2535.2,2534.9,1.2649]
[1748650125615,0.00591086,2535.2,2534.9,1.2649]
[1748650126008,1.35841086,2535.2,2534.9,1.2649]
[1748650126210,0.00591086,2535.2,2535.0,0.78862]
[1748650126410,0.79449086,2535.2,2535.1,1.2649]
[1748650126613,0.79449086,2535.2,2534.8,5.467]
[1748650126614,0.78865,2535.0,2534.8,5.467]
[1748650126813,0.78865,2535.0,2534.9,1.2649]
[1748650127022,0.79450086,2535.2,2534.9,2.05356]
[1748650127225,0.78862,2535.1,2534.9,1.2649]
[1748650127518,0.00591086,2535.2,2534.9,1.2649]
[1748650127717,0.78862,2535.1,2534.9,1.2649]
[1748650127916,0.78862,2535.1,2534.9,2.05356]
[1748650128221,0.78862,2535.1,2534.9,1.2649]
[1748650128423,0.00591086,2535.2,2535.1,0.78861]
[1748650128624,0.00591086,2535.2,2534.9,1.2649]
[1748650128824,0.78864,2535.0,2534.9,1.2649]
[1748650129018,0.00591086,2535.2,2535.0,0.78862]
[1748650129225,0.00591086,2535.2,2535.1,1.3521]
[1748650129428,0.00591086,2535.2,2535.1,5.34851]
[1748650129722,0.79449086,2535.2,2535.1,1.3521]
[1748650129920,0.00591086,2535.2,2535.1,1.3521]
[1748650130123,0.79449086,2535.2,2535.1,1.3521]
[1748650130621,0.78867,2534.9,2534.8,8.6748]
[1748650130820,1.3314,2535.1,2534.8,8.6748]
[1748650131022,0.78867,2534.9,2534.8,9.9345]
[1748650131525,0.78867,2534.9,2534.8,8.6748]
[1748650131921,0.78867,2534.9,2534.8,5.467]
[1748650132125,0.00591086,2535.2,2535.1,0.78861]
[1748650132433,0.00591086,2535.2,2534.9,1.2597]
[1748650132631,0.00591086,2535.2,2535.1,3.99641]
[1748650133121,0.00591086,2535.2,2535.1,8.99641]
[1748650133325,0.00591086,2535.2,2535.1,10.25611]
[1748650134419,2.5633,2535.3,2535.2,0.78858]
[1748650135131,2.5633,2535.3,2535.2,5.78858]
[1748650135628,3.2078,2536.0,2535.2,5.0]
[1748650135828,3.2078,2536.0,2535.0,0.6606]
[1748650135829,3.2078,2536.0,2535.6,3.2078]
[1748650136031,0.78839,2535.8,2535.7,1.3258]
[1748650136230,3.2078,2536.0,2535.7,1.3258]
[1748650136231,3.2078,2536.0,2535.7,6.5588]
[1748650136728,0.00591086,2536.1,2536.0,0.78833]
[1748650136931,0.00591086,2536.1,2536.0,2.03533]
[1748650137131,0.00591086,2536.1,2536.0,7.68603]
[1748650139127,1.96951,2537.7,2536.0,6.8977]
[1748650139323,0.2822,2537.1,2536.6,3.2078]
[1748650139528,0.78802,2537.0,2536.7,6.02009]
[1748650139727,0.2822,2537.1,2536.9,3.2078]
[1748650140030,0.78808,2536.8,2536.7,5.232]
[1748650140240,1.24731086,2537.0,2536.7,5.232]
[1748650140433,0.00591086,2537.0,2536.8,3.2078]
[1748650140731,0.00591086,2537.0,2536.9,0.78805]
[1748650141832,0.78805,2536.9,2536.8,3.2078]
[1748650142427,1.24731086,2537.0,2536.8,3.2078]
[1748650142628,0.00591086,2537.0,2536.8,3.99586]
[1748650142924,0.00591086,2537.0,2536.9,1.2802]
[1748650143321,0.00591086,2537.0,2536.9,2.06825]
[1748650143527,0.00591086,2537.0,2536.9,1.2802]
[1748650143738,0.00591086,2537.0,2536.9,2.06825]
[1748650144428,0.00591086,2537.0,2536.9,1.2802]
[1748650144632,0.00591086,2537.0,2536.8,3.2078]
[1748650144633,0.78805,2536.9,2536.8,3.2078]
[1748650144834,0.78805,2536.9,2536.8,8.4388]
[1748650145532,0.78805,2536.9,2536.8,5.231]
[1748650145933,2.08025,2536.9,2536.8,5.231]
[1748650146926,0.78814,2536.6,2536.5,0.00591086]
[1748650148433,0.78826,2536.2,2536.1,3.2078]
[1748650149632,0.7883,2536.1,2536.0,5.231]
[1748650150132,1.2922,2536.5,2536.0,5.231]
[1748650150430,0.78816,2536.6,2536.3,3.99602]
[1748650150636,0.013,2536.4,2536.3,3.99602]
[1748650151332,0.8012,2536.4,2536.3,3.2078]
[1748650151536,0.78833,2536.0,2535.9,8.44471086]
[1748650151944,1.2555,2536.4,2535.9,8.44471086]
[1748650152132,1.2555,2536.4,2536.3,0.78823]
[1748650152332,0.013,2536.4,2536.2,3.99605]
[1748650152531,0.78823,2536.3,2536.2,3.2078]
[1748650152728,0.80122,2536.4,2536.2,3.2078]
[1748650153035,0.013,2536.4,2536.3,0.78823]
[1748650153230,1e-05,2536.4,2536.3,5.78823]
[1748650153431,1e-05,2536.4,2536.3,6.42283]
[1748650154340,1e-05,2536.4,2536.3,6.7226059]
[1748650154639,1e-05,2536.4,2536.3,6.42283]
[1748650155136,1e-05,2536.4,2536.3,6.7246224]
[1748650155334,1e-05,2536.4,2536.3,5.53180239]
[1748650155642,1e-05,2536.4,2536.3,5.53201909]
[1748650155836,1e-05,2536.4,2536.3,5.53201952]
[1748650156340,1e-05,2536.4,2536.3,6.31984803]
[1748650156543,1e-05,2536.4,2536.3,6.31983225]
[1748650156734,1e-05,2536.4,2536.3,6.31987997]
[1748650157038,1e-05,2536.4,2536.3,6.31988009]
[1748650157240,1.36431,2536.4,2536.3,6.31989091]
[1748650157442,1e-05,2536.4,2536.3,6.31993553]
[1748650157632,1e-05,2536.4,2536.3,6.31992819]
[1748650157837,1e-05,2536.4,2536.3,6.31995321]
[1748650158042,1.28961086,2537.0,2536.9,0.78805]
[1748650158237,0.00591086,2537.0,2536.9,6.31953485]
[1748650158439,0.00591086,2537.0,2536.9,6.31948437]
[1748650158738,0.00591086,2537.0,2536.9,0.30163756]
[1748650158942,0.78807,2536.9,2536.6,0.78813]
[1748650159141,1.2774,2536.8,2536.7,0.30162494]
[1748650159441,1.2774,2536.8,2536.6,0.78813]
[1748650159637,2.06548,2536.8,2536.6,0.78814]
[1748650159841,0.6646,2536.9,2536.5,8.4378]
[1748650160141,0.00591086,2537.0,2536.9,0.78805]
[1748650160738,0.00591086,2537.0,2536.8,3.2078]
[1748650160932,0.00591086,2537.0,2536.4,8.4378]
[1748650161136,0.78817,2536.5,2536.4,8.4378]
[1748650161845,0.78813,2536.7,2536.4,8.4378]
[1748650162143,1.2737,2536.6,2536.5,0.78817]
[1748650162759,1.3103,2536.9,2536.8,0.78808]
[1748650163042,2.584,2536.9,2536.8,0.78808]
[1748650163846,0.78808,2536.8,2536.7,3.2078]
[1748650164038,0.7882,2536.4,2536.3,3.2078]
[1748650164244,0.7883,2536.1,2536.0,3.2078]
[1748650165142,1.45139,2536.2,2536.0,3.2078]
[1748650165444,3.8508,2536.9,2536.0,3.2078]
[1748650165645,1.3068,2536.7,2536.1,1.3571]
[1748650165944,0.78819,2536.5,2536.2,5.99025]
[1748650166145,1.3068,2536.4,2536.2,5.99025]
[1748650166346,1.3068,2536.4,2536.3,0.78823]
[1748650166647,2.09501,2536.4,2536.2,5.99025]
[1748650166836,0.78823,2536.3,2536.2,5.202]
[1748650167043,2.08405,2536.3,2536.0,8.4098]
[1748650167237,1.2958,2536.3,2536.1,0.78827]
[1748650167545,1.2958,2536.3,2536.2,0.78826]
[1748650167848,1.2958,2536.3,2536.1,0.78828]
[1748650168051,0.78828,2536.2,2536.0,8.4098]
[1748650168248,1.2958,2536.1,2536.0,8.4098]
[1748650168749,1.2958,2536.1,2536.0,9.19813]
[1748650168949,0.6631,2536.8,2536.2,0.78824]
[1748650169248,0.78819,2536.5,2536.3,3.2078]
[1748650169548,0.7882,2536.4,2536.3,3.2078]
[1748650169750,1.2958,2536.4,2536.0,5.99031]
[1748650170051,1.2958,2536.4,2536.1,0.78829]
[1748650170257,1.2958,2536.4,2536.0,5.99031]
[1748650170444,0.78825,2536.3,2536.1,0.78829]
[1748650170643,2.04747,2536.2,2536.0,5.99031]
[1748650170847,0.78829,2536.1,2536.0,5.202]
[1748650171149,1.2592,2536.1,2536.0,5.99033]
[1748650171545,1.2592,2536.1,2536.0,5.202]
[1748650171844,0.78829,2536.1,2536.0,5.202]
[1748650172244,0.78833,2536.0,2535.9,0.00591086]
[1748650172444,0.78842,2535.7,2535.6,12.25316185]
[1748650172841,0.78842,2535.8,2535.6,12.25316185]
[1748650173041,1.2592,2535.9,2535.6,12.25316185]
[1748650173042,2.03302,2535.7,2535.6,12.25316185]
[1748650173241,1.2446,2535.7,2535.6,9.19825]
[1748650173438,0.6405,2536.0,2535.6,8.4098]
[1748650173950,0.78838,2535.9,2535.6,9.19823]
[1748650174141,1.2446,2535.8,2535.6,8.4098]
[1748650174342,1.2446,2535.8,2535.6,9.19816]
[1748650174649,1.97058,2536.4,2535.6,9.19816]
[1748650174650,3.2078,2536.6,2535.6,13.4098]
[1748650174846,1.9203,2536.5,2536.0,3.2078]
[1748650175142,1.9203,2536.5,2536.1,5.202]
[1748650175350,0.78818,2536.3,2536.1,5.202]
[1748650175547,1.2446,2536.2,2536.1,5.202]
[1748650175747,2.03279,2536.2,2536.1,5.202]
[1748650176253,0.78829,2535.9,2535.7,8.4098]
[1748650176454,1.2446,2536.2,2535.7,8.4098]
[1748650176648,2.0328,2536.2,2535.9,0.78826]
[1748650177150,0.78822,2536.1,2535.8,0.78829]
[1748650177348,1.2787,2536.0,2535.7,8.4098]
[1748650177656,0.78831,2535.8,2535.7,3.2078]
[1748650179654,1.2787,2536.0,2535.4,3.21371086]
[1748650179655,0.7884,2535.5,2535.4,3.21371086]
[1748650179848,0.79427086,2535.7,2535.4,3.21371086]
[1748650180048,0.00591086,2535.7,2535.5,0.78839]
[1748650180351,1.36351086,2535.7,2535.5,0.78839]
[1748650180751,1.36351086,2535.7,2535.4,3.21371086]
[1748650181055,0.78841,2535.5,2535.4,3.21371086]
[1748650181755,2.14601,2535.5,2535.4,3.21371086]
[1748650182853,2.14601,2535.5,2535.4,0.00591086]
[1748650183357,2.146,2535.5,2535.4,0.00591086]
[1748650184457,1.3576,2535.5,2535.4,3.21371086]
[1748650184663,0.00591086,2535.7,2535.4,3.21371086]
[1748650184956,1.3497,2535.6,2535.5,0.7884]
[1748650185154,0.00591086,2535.7,2535.6,0.78837]
[1748650185554,0.00591086,2535.7,2535.5,2.05567]
[1748650185959,0.00591086,2535.7,2535.6,0.78837]
[1748650186658,0.79426086,2535.7,2535.5,2.05569]
[1748650186849,0.7884,2535.5,2535.4,3.21371086]
[1748650187057,0.7884,2535.5,2535.4,0.00591086]
[1748650187257,5.7884,2535.5,2535.4,8.6e-07]
[1748650193274,6.00219491,2535.5,2535.4,8.6e-07]
[1748650193570,5.7884,2535.5,2535.4,8.6e-07]
[1748650193762,6.00219529,2535.5,2535.4,8.6e-07]
[1748650193967,5.7884,2535.5,2535.4,8.6e-07]
[1748650194174,6.87231506,2535.5,2535.4,8.6e-07]
[1748650194675,7.49231506,2535.5,2535.4,8.6e-07]
[1748650195676,6.4084,2535.5,2535.4,8.6e-07]
[1748650196169,7.698,2535.5,2535.4,8.6e-07]
[1748650196371,0.78865,2534.7,2534.6,3.2078]
[1748650196770,0.78871,2534.5,2534.4,5.198]
[1748650197873,0.78878,2534.3,2534.2,0.00591086]
[1748650199170,5.78878,2534.3,2534.2,8.6e-07]
[1748650199472,3.0955848,2534.3,2534.2,8.6e-07]
[1748650199671,8.0955848,2534.3,2534.2,8.6e-07]
[1748650200472,33.41438,2534.3,2534.2,8.6e-07]
[1748650201074,13.18238,2534.3,2534.2,8.6e-07]
[1748650201485,0.78918,2533.0,2532.9,3.8849]
[1748650201773,3.2078,2533.4,2532.8,1.2602]
[1748650201971,0.78917,2533.1,2532.8,1.2602]
[1748650202173,1.2867,2533.4,2532.9,0.7892]
[1748650202373,0.6294,2533.7,2533.0,5.25717]
[1748650202574,0.00591086,2533.4,2533.3,3.2078]
[1748650202891,0.00591086,2533.4,2533.3,3.99689]
[1748650203178,3.2078,2534.2,2533.3,8.2078]
[1748650203377,3.2078,2534.2,2533.6,3.2078]
[1748650203679,0.78893,2533.8,2533.7,5.8444]
[1748650203879,0.78891,2533.9,2533.7,5.8444]
[1748650204080,1.33631086,2534.1,2533.7,5.8444]
[1748650204381,0.78893,2533.8,2533.7,5.2]
[1748650204578,0.78906,2533.4,2533.3,3.2078]
[1748650204977,0.78909,2533.3,2533.2,5.2]
[1748650205373,4.5382,2533.6,2532.9,0.00393973]
[1748650205679,0.78918,2533.0,2532.9,0.00393973]
[1748650205878,4.5382,2533.6,2532.9,0.00393973]
[1748650206080,0.78917,2533.1,2532.9,0.00393973]
[1748650206279,1.97257,2533.5,2532.9,0.00393973]
[1748650206481,0.78918,2533.0,2532.9,0.00393973]
[1748650206981,0.78917,2533.1,2532.9,0.00393973]
[1748650207180,0.78903,2533.5,2533.2,0.78912]
[1748650207481,3.2078,2533.6,2533.2,3.2078]
[1748650207674,1.97234,2533.8,2533.0,6.506]
[1748650207870,0.78907,2533.4,2533.0,6.506]
[1748650208070,1.2479,2533.7,2533.1,0.78913]
[1748650208282,0.78906,2533.4,2533.1,3.99695]
[1748650208474,4.4557,2533.9,2533.1,3.2078]
[1748650208675,0.78901,2533.6,2533.3,0.78906]
[1748650208868,4.4557,2533.9,2533.3,0.78906]
[1748650209175,0.78901,2533.6,2533.3,0.78906]
[1748650209378,4.4557,2533.9,2533.1,3.2078]
[1748650209583,0.78907,2533.4,2533.1,3.99693]
[1748650209785,0.78907,2533.4,2533.2,0.78912]
[1748650210584,0.78907,2533.4,2533.1,3.99694]
[1748650210879,4.4557,2533.9,2533.1,3.99694]
[1748650211181,0.78907,2533.4,2533.1,3.99694]
[1748650211373,4.4557,2533.9,2533.1,3.2078]
[1748650211670,0.00591086,2534.1,2533.5,3.2078]
[1748650211873,0.00591086,2534.1,2532.9,0.00393973]
[1748650211874,0.78918,2533.0,2532.9,0.00393973]
[1748650212983,4.5425,2533.3,2532.9,0.00393973]
[1748650213280,0.78904,2533.5,2533.2,3.99692]
[1748650213484,0.78904,2533.5,2533.3,5.201]
[1748650213485,0.78903,2533.5,2533.3,5.201]
[1748650213680,0.78902,2533.6,2533.3,5.201]
[1748650213880,3.2078,2533.9,2533.3,5.201]
[1748650214076,0.78901,2533.6,2533.3,5.99007]
[1748650214284,0.78895,2533.8,2533.5,0.78901]
[1748650214674,0.78895,2533.8,2533.6,0.6515]
[1748650214987,0.78897,2533.7,2533.6,0.6515]
[1748650215989,0.78893,2533.8,2533.6,5.6515]
[1748650216178,0.78897,2533.7,2533.6,0.6515]
[1748650216379,0.789,2533.6,2533.5,3.2078]
[1748650216582,0.78918,2533.0,2532.9,0.00393973]
[1748650216884,0.78934,2532.5,2532.4,9.04436185]
[1748650217087,0.98674,2532.5,2532.4,3.84336185]
[1748650217280,0.78943,2532.3,2532.0,9.19829]
[1748650217479,0.1974,2532.5,2532.0,8.4088]
[1748650217686,0.78943,2532.2,2532.1,0.6814]
[1748650218377,0.20332312,2532.5,2532.1,0.6814]
[1748650218584,0.78943,2532.2,2532.1,0.6814]
[1748650220085,0.78946,2532.1,2532.0,0.00592312]
[1748650222689,0.78943,2532.3,2532.0,0.00592312]
[1748650222884,0.7894,2532.3,2532.0,1.25422312]